fUST/lending_fUST_20250717
["ID","MTS","AMOUNT","RATE_DAILY","PERIOD"]
[372709098,1752745855198,-500.0,0.00017931,2]
[372709100,1752745855207,-500.0,0.00017931,2]
[372709102,1752745855216,-500.0,0.00017931,2]
[372709104,1752745855226,-500.0,0.00017931,2]
[372709106,1752745855236,-500.0,0.00017931,2]
[372709108,1752745855245,-500.0,0.00017931,2]
[372709110,1752745855255,-588.16267214,0.00017931,2]
[372709112,1752745855264,-409.13461291,0.00017931,2]
[372709114,1752745855274,-359.12846289,0.00017931,2]
[372709116,1752745855283,-395.42875921,0.00017932,2]
[372709118,1752745855293,-460.0,0.00018034,2]
[372709120,1752745855302,-460.0,0.00018034,2]
[372709123,1752745855313,-460.0,0.00018308,2]
[372709125,1752745855322,-460.0,0.00018308,2]
[372709127,1752745855334,-698.9150735,0.00020114,2]
[372709129,1752745855346,-2676.82578887,0.00021916,2]
[372709131,1752745855355,-500.0,0.00021917,2]
[372709133,1752745855364,-500.0,0.00021917,2]
[372709135,1752745855374,-500.0,0.00021917,2]
[372709137,1752745855384,-500.0,0.00021917,2]
[372709139,1752745855395,-500.0,0.00021917,2]
[372709141,1752745855404,-500.0,0.00021917,2]
[372709143,1752745855413,-500.0,0.00021917,2]
[372709145,1752745855423,-510.76042761,0.00021917,2]
[372709147,1752745855432,-200.0,0.00021918,2]
[372709149,1752745855442,-150.0,0.00021918,2]
[372709151,1752745855451,-212.0,0.00021947,2]
[372709153,1752745855461,-660.0,0.00021956,2]
[372709155,1752745855471,-151.0,0.00021969,7]
[372709157,1752745855480,-463.34381087,0.00021973,2]
[372709159,1752745855491,-500.0,0.00021973,2]
[372709161,1752745855500,-216.03051232,0.00021999,2]
[372709163,1752745855510,-162.95721284,0.00022,2]
[372709165,1752745855519,-7736.05,0.00022,7]
[372709167,1752745855528,-4089.19,0.00022,7]
[372709169,1752745855537,-33392.56,0.00022,7]
[372709171,1752745855547,-1000.0,0.00022,2]
[372709173,1752745855556,-1000.0,0.00022,2]
[372709175,1752745855566,-1000.0,0.00022,2]
[372709177,1752745855575,-1000.0,0.00022,2]
[372709179,1752745855584,-1000.0,0.00022,2]
[372709194,1752745855712,-1000.0,0.00022,2]
[372709196,1752745855727,-1000.0,0.00022,2]
[372709198,1752745855737,-1000.0,0.00022,2]
[372709200,1752745855746,-1000.0,0.00022,2]
[372709202,1752745855756,-1000.0,0.00022,2]
[372709205,1752745855765,-1000.0,0.00022,2]
[372709207,1752745855775,-1000.0,0.00022,2]
[372709209,1752745855784,-1000.0,0.00022,2]
[372709211,1752745855794,-1000.0,0.00022,2]
[372709213,1752745855803,-1000.0,0.00022,2]
[372709215,1752745855813,-1000.0,0.00022,2]
[372709217,1752745855822,-1000.0,0.00022,2]
[372709219,1752745855831,-1000.0,0.00022,2]
[372709221,1752745855839,-1000.0,0.00022,2]
[372709223,1752745855849,-1000.0,0.00022,2]
[372709225,1752745855858,-1000.0,0.00022,2]
[372709227,1752745855867,-1000.0,0.00022,2]
[372709229,1752745855877,-1000.0,0.00022,2]
[372709230,1752745855887,-1000.0,0.00022,2]
[372709233,1752745855897,-1000.0,0.00022,2]
[372709235,1752745855907,-1000.0,0.00022,2]
[372709236,1752745855916,-1000.0,0.00022,2]
[372709238,1752745855926,-1000.0,0.00022,2]
[372709241,1752745855935,-1000.0,0.00022,2]
[372709243,1752745855945,-1000.0,0.00022,2]
[372709245,1752745855955,-1000.0,0.00022,2]
[372709247,1752745855965,-1000.0,0.00022,2]
[372709249,1752745855974,-1000.0,0.00022,2]
[372709251,1752745855983,-1000.0,0.00022,2]
[372709253,1752745855993,-1000.0,0.00022,2]
[372709255,1752745856003,-1000.0,0.00022,2]
[372709257,1752745856013,-1000.0,0.00022,2]
[372709259,1752745856023,-1000.0,0.00022,2]
[372709261,1752745856033,-1000.0,0.00022,2]
[372709263,1752745856042,-1000.0,0.00022,2]
[372709265,1752745856052,-1000.0,0.00022,2]
[372709267,1752745856062,-1000.0,0.00022,2]
[372709269,1752745856072,-1000.0,0.00022,2]
[372709271,1752745856081,-1000.0,0.00022,2]
[372709273,1752745856090,-1000.0,0.00022,2]
[372709275,1752745856100,-1000.0,0.00022,2]
[372709277,1752745856109,-1000.0,0.00022,2]
[372709279,1752745856119,-1000.0,0.00022,2]
[372709281,1752745856128,-1000.0,0.00022,2]
[372709283,1752745856138,-76970.69,0.00022,2]
[372709285,1752745856147,-1000.0,0.00022,2]
[372709287,1752745856158,-1000.0,0.00022,2]
[372709289,1752745856167,-1000.0,0.00022,2]
[372709291,1752745856176,-1000.0,0.00022,2]
[372709293,1752745856185,-1000.0,0.00022,2]
[372709295,1752745856194,-1000.0,0.00022,2]
[372709297,1752745856204,-1000.0,0.00022,2]
[372709300,1752745856214,-1000.0,0.00022,2]
[372709302,1752745856224,-1000.0,0.00022,2]
[372709303,1752745856233,-1000.0,0.00022,2]
[372709305,1752745856243,-1000.0,0.00022,2]
[372709308,1752745856255,-1000.0,0.00022,2]
[372709310,1752745856265,-1000.0,0.00022,2]
[372709311,1752745856274,-1000.0,0.00022,2]
[372709314,1752745856285,-1000.0,0.00022,2]
[372709316,1752745856294,-1000.0,0.00022,2]
[372709317,1752745856304,-1000.0,0.00022,2]
[372709319,1752745856314,-1000.0,0.00022,2]
[372709321,1752745856323,-1465.14,0.00022,2]
[372709323,1752745856333,-75232.78270097,0.00022,2]
[372709325,1752745856342,-352.68495374,0.00022,2]
[372709328,1752745856353,-56456.42647882,0.00022,2]
[372709330,1752745856362,-7494.1932499,0.00022,2]
[372709332,1752745856372,-370.87880604,0.00022,14]
[372709334,1752745856381,-151.0,0.00022,7]
[372709336,1752745856392,-151.0,0.00022,7]
[372709338,1752745856401,-151.0,0.00022,7]
[372709340,1752745856411,-151.0,0.00022,7]
[372709342,1752745856422,-154.520371,0.00022,7]
[372709344,1752745856431,-154.520371,0.00022,7]
[372709346,1752745856441,-151.0,0.00022,7]
[372709348,1752745856450,-151.0,0.00022,7]
[372709350,1752745856460,-151.0,0.00022,7]
[372709352,1752745856470,-151.0,0.00022,7]
[372709354,1752745856479,-445.42643,0.00022,7]
[372709356,1752745856489,-445.42643,0.00022,7]
[372709358,1752745856499,-151.0,0.00022,7]
[372709360,1752745856508,-151.0,0.00022,7]
[372709362,1752745856518,-151.0,0.00022,7]
[372709364,1752745856528,-151.306194,0.00022,7]
[372709366,1752745856537,-151.0,0.00022,7]
[372709368,1752745856547,-151.0,0.00022,7]
[372709370,1752745856556,-151.200515,0.00022,7]
[372709372,1752745856565,-1755.72206,0.00022,7]
[372709374,1752745856575,-1755.72206,0.00022,7]
[372709376,1752745856585,-743.496973,0.00022,7]
[372709379,1752745856594,-743.496973,0.00022,7]
[372709381,1752745856603,-151.0,0.00022,7]
[372709383,1752745856613,-151.0,0.00022,2]
[372709385,1752745856622,-294.087487,0.00022,7]
[372709387,1752745856632,-294.087487,0.00022,7]
[372709389,1752745856642,-151.0,0.00022,7]
[372709391,1752745856655,-151.0,0.00022,7]
[372709392,1752745856666,-168.410854,0.00022,7]
[372709395,1752745856675,-12607.95677342,0.00022,7]
[372709397,1752745856686,-151.916457,0.00022,7]
[372709399,1752745856696,-465.179616,0.00022,7]
[372709401,1752745856706,-465.179616,0.00022,7]
[372709403,1752745856715,-151.0,0.00022,7]
[372709405,1752745856726,-214.44804168,0.00022,7]
[372709407,1752745856737,-151.0,0.00022,7]
[372709409,1752745856746,-151.0,0.00022,7]
[372709411,1752745856755,-218.529304,0.00022,7]
[372709413,1752745856765,-151.0,0.00022,7]
[372709415,1752745856774,-476.16111942,0.00022,7]
[372709417,1752745856783,-218.529304,0.00022,7]
[372709419,1752745856792,-375.0,0.00022,2]
[372709421,1752745856802,-417.010222,0.00022019,4]
[372709423,1752745856812,-160.0,0.00022028,5]
[372709425,1752745856822,-15951.92248767,0.00022038,6]
[372709427,1752745856831,-3422.99,0.00022042,2]
[372709429,1752745856841,-4758.58,0.00022043,2]
[372709431,1752745856851,-2674.7,0.00022043,2]
[372709433,1752745856860,-761.9,0.00022043,2]
[372709435,1752745856871,-3502.47,0.00022043,2]
[372709437,1752745856881,-2683.97,0.00022043,2]
[372709439,1752745856892,-460.0,0.00022043,2]
[372709441,1752745856903,-1161.67,0.00022043,2]
[372709444,1752745856914,-659.41,0.00022043,2]
[372709446,1752745856923,-678.7,0.00022044,2]
[372709448,1752745856933,-460.0,0.00022044,2]
[372709450,1752745856942,-4405.08,0.00022044,2]
[372709452,1752745856951,-460.0,0.00022045,2]
[372709453,1752745856961,-940.09,0.00022045,2]
[372709456,1752745856972,-1239.96,0.00022045,2]
[372709458,1752745856981,-538.65,0.00022045,2]
[372709460,1752745856991,-721.61,0.00022045,2]
[372709462,1752745857001,-694.55,0.00022045,2]
[372709464,1752745857010,-1034.96,0.00022045,2]
[372709466,1752745857019,-601.15,0.00022045,2]
[372709468,1752745857028,-429.2412091,0.00022082,2]
[372709470,1752745857038,-162.95721284,0.00022082,2]
[372709472,1752745857047,-1865.0,0.0002209,2]
[372709474,1752745857057,-1693.0,0.0002209,2]
[372709476,1752745857066,-1380.22841907,0.00022126,2]
[372709478,1752745857075,-294.79733788,0.00022135,2]
[372709480,1752745857085,-131709.2994338,0.00022136,2]
[372709482,1752745857095,-151.0,0.00022136,7]
[372709484,1752745857104,-151.0,0.00022136,7]
[372709486,1752745857113,-151.0,0.00022136,7]
[372709488,1752745857123,-205.151287,0.00022136,7]
[372709490,1752745857133,-205.151287,0.00022136,7]
[372709492,1752745857143,-408.391861,0.00022136,7]
[372709494,1752745857152,-408.391861,0.00022136,7]
[372709496,1752745857162,-151.0,0.00022136,7]
[372709498,1752745857171,-1652.73,0.00022141,2]
[372709500,1752745857180,-1000.0,0.00022143,5]
[372709502,1752745857189,-509.47,0.00022144,2]
[372709504,1752745857198,-460.0,0.00022144,2]
[372709506,1752745857207,-482.32,0.00022144,2]
[372709508,1752745857216,-821.31,0.00022144,2]
[372709510,1752745857226,-834.08,0.00022144,2]
[372709512,1752745857235,-803.34,0.00022144,2]
[372709514,1752745857244,-460.0,0.00022144,2]
[372709516,1752745857255,-1751.53,0.00022144,2]
[372709518,1752745857265,-621.7,0.00022144,2]
[372709520,1752745857274,-5369.02,0.00022144,2]
[372709522,1752745857283,-1475.65,0.00022144,2]
[372709524,1752745857292,-1601.92,0.00022144,2]
[372709526,1752745857301,-460.0,0.00022144,2]
[372709528,1752745857311,-658.3,0.00022144,2]
[372709530,1752745857319,-1799.59,0.00022144,2]
[372709532,1752745857328,-1610.03,0.00022144,2]
[372709534,1752745857338,-2915.87,0.00022144,2]
[372709536,1752745857347,-460.0,0.00022144,2]
[372709538,1752745857357,-151.0,0.00022145,7]
[372709540,1752745857366,-151.0,0.00022146,7]
[372709542,1752745857375,-151.0,0.00022146,7]
[372709544,1752745857384,-219.638369,0.00022146,7]
[372709546,1752745857395,-219.638369,0.00022146,7]
[372709548,1752745857404,-303.117003,0.00022146,7]
[372709550,1752745857414,-303.117003,0.00022146,7]
[372709552,1752745857423,-151.0,0.00022146,7]
[372709554,1752745857432,-151.0,0.00022146,7]
[372709556,1752745857441,-151.0,0.00022146,7]
[372709557,1752745857451,-666.301554,0.00022146,7]
[372709559,1752745857460,-666.301554,0.00022146,7]
[372709561,1752745857469,-752.21,0.00022146,2]
[372709564,1752745857480,-2500.0,0.00022165,2]
[372709565,1752745857490,-212.0,0.00022171,2]
[372709567,1752745857499,-375.0,0.00022192,7]
[372709569,1752745857508,-162.95721284,0.00022192,2]
[372709571,1752745857518,-500.0,0.00022222,2]
[372709573,1752745857528,-2488.74686382,0.00022227,2]
[372709576,1752745857538,-2500.0,0.00022227,2]
[372709578,1752745857548,-250.0,0.00022238,2]
[372709579,1752745857557,-299.4,0.00022248,5]
[372709581,1752745857567,-212.0,0.00022256,2]
[372709584,1752745857576,-4000.0,0.00022277,4]
[372709585,1752745857586,-151.0,0.00022279,7]
[372709588,1752745857595,-151.0,0.00022279,7]
[372709589,1752745857605,-6237.97629527,0.00022279,6]
[372709590,1752745857697,-460.0,0.00017935,2]
[372709591,1752745857707,-414.82195756,0.000189,2]
[372709592,1752745857717,-423.31159788,0.00021254,2]
[372709594,1752745857729,-275.60347562,0.00021254,2]
[372709595,1752745857741,-196.66296884,0.00022279,6]
[372709597,1752745857756,-2905.1879997,0.00022279,6]
[372709600,1752745857769,-6612.09522386,0.00022279,6]
[372709602,1752745857779,-11023.71629678,0.000223,2]
[372709604,1752745857789,-151.0,0.000223,7]
[372709606,1752745857798,-151.0,0.000223,7]
[372709608,1752745857808,-151.0,0.000223,7]
[372709610,1752745857817,-151.0,0.000223,7]
[372709612,1752745857826,-160.0,0.00022306,6]
[372709614,1752745857835,-4758.58,0.00022316,2]
[372709616,1752745857845,-2674.7,0.00022316,2]
[372709618,1752745857855,-761.9,0.00022316,2]
[372709620,1752745857864,-3502.47,0.00022316,2]
[372709621,1752745857873,-2683.97,0.00022316,2]
[372709623,1752745857883,-3192.89504935,0.00022316,2]
[372713703,1752745903557,432.7137466,0.00016926,2]
[372713873,1752745905589,202.24683189,0.00017732,2]
[372714152,1752745908454,258.43695648,0.00017637,2]
[372716007,1752745942963,698.13945314,0.00017298,2]
[372716013,1752745978605,1065.26631555,0.00017733,2]
[372716014,1752745978629,754.03499041,0.00017733,2]
[372716024,1752746023142,3000.0,0.00023,30]
[372716034,1752746125170,184.22458,0.00017065,2]
[372716035,1752746125305,184.22458,0.00017065,120]
[372716444,1752746215337,563.72903778,0.00015,2]
[372717053,1752746246354,418.88367188,0.00017298,2]
[372717054,1752746246629,1032.3898033,0.00016905,2]
[372717157,1752746338428,680.715714,0.00013699,2]
[372717159,1752746350186,349.45753675,0.00017733,2]
[372717161,1752746397944,2487.33,0.000178,2]
[372717162,1752746483527,3915.0871521,0.00016984,2]
[372717163,1752746484370,9614.14751378,0.00016849,2]
[372717164,1752746484394,20000.0,0.00016849,2]
[372717165,1752746484417,20000.0,0.00016849,2]
[372717166,1752746484441,349.08990062,0.00016849,2]
[372717167,1752746511443,159.01,0.0002739,120]
[372717168,1752746547831,251.33020313,0.00017296,2]
[372717179,1752746571997,19399.57989625,0.00016832,2]
[372717180,1752746572023,5500.42010375,0.00016832,2]
[372717181,1752746585097,579.5967272,0.00016966,2]
[372717182,1752746593113,191.0,0.00027397,120]
[372717410,1752746608755,200.0,0.00027397,120]
[372717412,1752746614220,200.0,0.00027397,120]
[372717413,1752746618800,188.2811958,0.00016832,2]
[372717414,1752746633597,347.90182977,0.00017731,2]
[372717779,1752746656065,207.5699922,0.00016832,2]
[372717900,1752746668332,3867.5835777,0.00016832,2]
[372717901,1752746705695,500.0,0.00017543,2]
[372717903,1752746710325,500.0,0.00017543,2]
[372717904,1752746714944,500.0,0.00017543,2]
[372717905,1752746719547,504.84913021,0.00017543,2]
[372718475,1752746820782,166.0,0.0001683,2]
[372718479,1752746896398,804.7279769,0.00016831,2]
[372718480,1752746908037,341.27477552,0.00017729,2]
[372718481,1752746966718,2198.465282,0.00016829,2]
[372718511,1752747032444,-300.0,0.00017827,2]
[372718513,1752747032455,-300.0,0.00017827,2]
[372718515,1752747032464,-300.0,0.00017827,2]
[372718517,1752747032474,-300.0,0.00017827,2]
[372718519,1752747032484,-1200.0,0.00017827,2]
[372718521,1752747032493,-287.57363024,0.00017827,2]
[372718523,1752747032502,-309.64095314,0.00017827,2]
[372718525,1752747032512,-267.68162366,0.00017827,2]
[372718527,1752747032522,-317.68094032,0.00017827,2]
[372718529,1752747032532,-1184.77919439,0.00017828,2]
[372718532,1752747032544,-15.22080561,0.00017828,2]
[372718534,1752747032554,-460.0,0.00017828,2]
[372718536,1752747032564,-460.0,0.00017828,2]
[372718538,1752747032573,-443.07911734,0.00017828,2]
[372719030,1752747038285,-16.92088266,0.00017828,2]
[372719031,1752747038295,-253.82464713,0.00017828,2]
[372719032,1752747038303,-500.0,0.00017828,2]
[372719033,1752747038312,-500.0,0.00017828,2]
[372719034,1752747038321,-500.0,0.00017828,2]
[372719035,1752747038330,-500.0,0.00017828,2]
[372719036,1752747038339,-500.0,0.00017828,2]
[372719037,1752747038348,-500.0,0.00017828,2]
[372719038,1752747038357,-500.0,0.00017828,2]
[372719039,1752747038366,-307.25447021,0.00017828,2]
[372719042,1752747038392,-192.74552979,0.00017828,2]
[372719043,1752747038401,-500.0,0.00017828,2]
[372719044,1752747038410,-552.43022014,0.00017828,2]
[372719045,1752747038419,-230.72998482,0.00017828,2]
[372719046,1752747038431,-269.27001518,0.00017828,2]
[372719047,1752747038440,-500.0,0.00017828,2]
[372719048,1752747038451,-500.0,0.00017828,2]
[372719049,1752747038460,-500.0,0.00017828,2]
[372719050,1752747038469,-500.0,0.00017828,2]
[372719051,1752747038478,-500.0,0.00017828,2]
[372719052,1752747038487,-500.0,0.00017828,2]
[372719053,1752747038497,-500.0,0.00017828,2]
[372719054,1752747038505,-500.0,0.00017828,2]
[372719055,1752747038515,-500.0,0.00017828,2]
[372719056,1752747038524,-500.0,0.00017828,2]
[372719057,1752747038533,-500.0,0.00017828,2]
[372719058,1752747038542,-600.0,0.00017828,2]
[372719059,1752747038551,-500.0,0.00017828,2]
[372719060,1752747038560,-300.0,0.00017828,2]
[372719061,1752747038569,-460.0,0.00017829,2]
[372719062,1752747038578,-460.0,0.00017829,2]
[372719063,1752747038588,-207.70214181,0.00017829,2]
[372719064,1752747038600,-252.29785819,0.00017829,2]
[372719065,1752747038609,-235.20214181,0.00017829,2]
[372719066,1752747038620,-224.79785819,0.00017829,2]
[372719067,1752747038630,-427.86284325,0.00017829,2]
[372719068,1752747038642,-32.13715675,0.00017829,2]
[372719069,1752747038652,-460.0,0.00017829,2]
[372719070,1752747038661,-302.4795216,0.00017829,2]
[372719071,1752747038673,-157.5204784,0.00017829,2]
[372719072,1752747038683,-757.5,0.00017829,2]
[372719073,1752747038694,-193.89003243,0.00017829,2]
[372719074,1752747038706,-809.8731554,0.00017829,2]
[372719075,1752747038716,-363.92779359,0.00017829,2]
[372719076,1752747038728,-904.03821,0.00017829,2]
[372719084,1752747040674,-4372.91706206,0.00017829,2]
[372719099,1752747045667,3793.32940895,0.00016856,2]
[372719100,1752747045691,6206.67059105,0.00016856,2]
[372719139,1752747046428,-1784.47,0.00017828,2]
[372719140,1752747046438,-460.0,0.00017828,2]
[372719141,1752747046447,-460.0,0.0001783,2]
[372719142,1752747046460,-460.0,0.0001783,2]
[372719143,1752747046469,-460.0,0.0001783,2]
[372719144,1752747046478,-460.0,0.0001783,2]
[372719145,1752747046488,-460.0,0.0001783,2]
[372719146,1752747046497,-1723.86,0.0001783,2]
[372719147,1752747046507,-460.0,0.0001783,2]
[372719148,1752747046516,-1313.43,0.0001783,2]
[372719149,1752747046525,-1006.49,0.0001783,2]
[372719150,1752747046534,-460.0,0.0001783,2]
[372719151,1752747046544,-544.1,0.0001783,2]
[372719152,1752747046553,-460.0,0.0001783,2]
[372719153,1752747046562,-460.0,0.0001783,2]
[372719154,1752747046571,-583.18,0.0001783,2]
[372719155,1752747046581,-460.0,0.0001783,2]
[372719156,1752747046590,-460.0,0.00017831,2]
[372719158,1752747046599,-460.80517486,0.00017831,2]
[372719159,1752747046609,-460.0,0.00017831,2]
[372719161,1752747046619,-460.0,0.00017831,2]
[372719163,1752747046629,-460.0,0.00017831,2]
[372719165,1752747046639,-460.0,0.00017831,2]
[372719167,1752747046649,-460.0,0.00017831,2]
[372719169,1752747046658,-457.59336901,0.00017831,2]
[372719171,1752747046668,-485.04884817,0.00017831,2]
[372719173,1752747046677,-460.0,0.00017831,2]
[372719175,1752747046687,-460.0,0.00017831,2]
[372719177,1752747046698,-460.0,0.00017831,2]
[372719179,1752747046709,-460.0,0.00017831,2]
[372719181,1752747046719,-460.0,0.00017831,2]
[372719183,1752747046727,-460.0,0.00017831,2]
[372719185,1752747046737,-460.0,0.00017831,2]
[372719187,1752747046746,-460.0,0.00017831,2]
[372719189,1752747046756,-460.0,0.00017831,2]
[372719191,1752747046766,-460.99197716,0.00017831,2]
[372719193,1752747046776,-460.0,0.00017831,2]
[372719195,1752747046785,-460.0,0.00017831,2]
[372719197,1752747046795,-525.08013702,0.00017831,2]
[372719199,1752747046805,-460.86083876,0.00017831,2]
[372719201,1752747046815,-460.0,0.00017831,2]
[372719203,1752747046825,-460.0,0.00017831,2]
[372719205,1752747046834,-460.0,0.00017831,2]
[372719207,1752747046843,-460.0,0.00017831,2]
[372719209,1752747046853,-460.0,0.00017831,2]
[372719211,1752747046862,-460.0,0.00017831,2]
[372719213,1752747046871,-460.0,0.00017831,2]
[372719215,1752747046881,-460.0,0.00017831,2]
[372719217,1752747046890,-460.0,0.00017831,2]
[372719219,1752747046899,-460.0,0.00017831,2]
[372719221,1752747046909,-460.0,0.00017831,2]
[372719223,1752747046918,-460.0,0.00017831,2]
[372719225,1752747046927,-460.0,0.00017831,2]
[372719227,1752747046937,-460.0,0.00017831,2]
[372719229,1752747046949,-460.0,0.00017831,2]
[372719231,1752747046959,-460.0,0.00017831,2]
[372719233,1752747046971,-460.0,0.00017831,2]
[372719235,1752747046981,-563.12216986,0.00017831,2]
[372719237,1752747046993,-460.0,0.00017831,2]
[372719239,1752747047007,-460.0,0.00017831,2]
[372719241,1752747047017,-460.0,0.00017831,2]
[372719243,1752747047027,-240.22708167,0.00017831,2]
[372719245,1752747047037,-460.0,0.00017831,2]
[372719247,1752747047046,-460.0,0.00017831,2]
[372719249,1752747047057,-460.0,0.00017831,2]
[372719251,1752747047067,-460.0,0.00017831,2]
[372719253,1752747047076,-460.0,0.00017831,2]
[372719255,1752747047086,-460.0,0.00017831,2]
[372719257,1752747047095,-460.0,0.00017831,2]
[372719259,1752747047104,-466.75316974,0.00017831,2]
[372719261,1752747047113,-460.0,0.00017831,2]
[372719263,1752747047123,-460.0,0.00017831,2]
[372719265,1752747047132,-460.0,0.00017831,2]
[372719267,1752747047141,-460.0,0.00017831,2]
[372719269,1752747047152,-460.0,0.00017831,2]
[372719271,1752747047160,-460.0,0.00017831,2]
[372719273,1752747047170,-460.0,0.00017831,2]
[372719274,1752747047179,-460.0,0.00017831,2]
[372719277,1752747047189,-460.0,0.00017831,2]
[372719279,1752747047198,-460.0,0.00017831,2]
[372719280,1752747047208,-460.0,0.00017831,2]
[372719282,1752747047218,-460.0,0.00017831,2]
[372719284,1752747047227,-460.0,0.00017831,2]
[372719286,1752747047236,-460.0,0.00017831,2]
[372719288,1752747047245,-460.0,0.00017831,2]
[372719290,1752747047255,-500.0,0.00017831,2]
[372719292,1752747047264,-460.0,0.00017831,2]
[372719294,1752747047273,-460.0,0.00017831,2]
[372719296,1752747047282,-460.43482993,0.00017831,2]
[372719298,1752747047292,-460.0,0.00017831,2]
[372719300,1752747047301,-460.0,0.00017831,2]
[372719302,1752747047310,-460.0,0.00017831,2]
[372719304,1752747047320,-460.0,0.00017831,2]
[372719306,1752747047329,-460.0,0.00017831,2]
[372719308,1752747047338,-460.0,0.00017831,2]
[372719310,1752747047348,-462.91111312,0.00017831,2]
[372719312,1752747047357,-460.0,0.00017831,2]
[372719314,1752747047367,-460.0,0.00017831,2]
[372719316,1752747047376,-460.0,0.00017831,2]
[372719318,1752747047387,-460.0,0.00017831,2]
[372719320,1752747047397,-460.0,0.00017831,2]
[372719321,1752747047406,-460.0,0.00017831,2]
[372719322,1752747047415,-460.0,0.00017831,2]
[372719323,1752747047424,-460.37557081,0.00017831,2]
[372719325,1752747047434,-460.0,0.00017831,2]
[372719327,1752747047443,-460.0,0.00017831,2]
[372719329,1752747047454,-460.0,0.00017831,2]
[372719331,1752747047463,-460.75722735,0.00017831,2]
[372719332,1752747047472,-460.0,0.00017831,2]
[372719333,1752747047482,-460.0,0.00017831,2]
[372719335,1752747047492,-460.0,0.00017831,2]
[372719337,1752747047501,-460.0,0.00017831,2]
[372719339,1752747047510,-460.0,0.00017832,2]
[372719341,1752747047520,-461.06621613,0.00017832,2]
[372719343,1752747047529,-165.2746656,0.00017832,2]
[372719345,1752747047538,-460.0,0.00017832,2]
[372719347,1752747047547,-460.0,0.00017832,2]
[372719349,1752747047558,-262.26393637,0.00017832,2]
[372719352,1752747047568,-460.0,0.00017832,2]
[372719353,1752747047578,-460.0,0.00017832,2]
[372719355,1752747047587,-482.34657111,0.00017832,2]
[372719357,1752747047597,-460.0,0.00017832,2]
[372719360,1752747047608,-460.0,0.00017832,2]
[372719362,1752747047618,-16407.06578236,0.00017833,2]
[372719364,1752747047629,-460.0,0.00017929,2]
[372719366,1752747047639,-460.0,0.00017929,2]
[372719368,1752747047650,-460.0,0.00017929,2]
[372719370,1752747047660,-461.84637413,0.00017929,2]
[372719372,1752747047669,-460.0,0.00017929,2]
[372719374,1752747047679,-460.0,0.00017929,2]
[372719376,1752747047688,-460.0,0.00017929,2]
[372719378,1752747047698,-2132.86,0.00017929,2]
[372719380,1752747047708,-755.43,0.00017929,2]
[372719382,1752747047720,-824.81,0.00017929,2]
[372719384,1752747047733,-460.0,0.0001793,2]
[372719386,1752747047745,-460.0,0.0001793,2]
[372719389,1752747047758,-460.0,0.0001793,2]
[372719391,1752747047770,-460.0,0.0001793,2]
[372719393,1752747047790,-460.0,0.0001793,2]
[372719395,1752747047801,-460.0,0.0001793,2]
[372719398,1752747047811,-460.748998,0.0001793,2]